Workbook

Sheet How-To
G33: How to Make an Intersection Template
G34: (That can be used in the automatic intersection balancing tool)
BC42: =IF(BD39<>"",AVERAGE(BD42,BD39),BD42) -> 1016 | BD42: =SUM(BB54:BE54) -> 1016 | BE42: =SUM(BB57:BE57) -> 1016 | BG42: =IF(BG41<>"",BG41-BG44,0) -> 0 | BH42: =IF(BH41<>"",BH41-BH44,0) -> 0 | BI42: imbal
BC43: target | BD43: $ | BE43: $ | BG43: # | BH43: # | BI43: target
BG44: =SUM(BE57,BD61,BI61,BH55) -> 794 | BH44: =SUM(BE54,BA61,BI64,BK55) -> 794 | BI44: =IF(BH41<>"",AVERAGE(BH44,BH41),BH44) -> 794
AR45: =CHOOSE(1,BF59&":","IX_NAME",AS45) -> 1: | AS45: Main Ave & Default St | BO45: Local OD Raw
AS46: Raw Count Date: | BO46: ="local_od_raw_"&BF59 -> local_od_raw_1 | BP46: 1 | BQ46: 2 | BR46: 3 | BS46: 4 | BT46: est | BU46: tgt | BV46: err
BO47: 1 | BP47: =BG61 -> 0 | BQ47: =BJ61 -> 39 | BR47: =BI61 -> 480 | BS47: =BH61 -> 469 | BT47: =SUM(BP47:BS47) -> 988 | BU47: =BI76 -> 988 | BV47: =IFERROR(ABS(BT47-BU47)/BU47,0) -> 0
BE48: Default St | BO48: 2 | BP48: =BH57 -> 402 | BQ48: =BH58 -> 0 | BR48: =BH55 -> 102 | BS48: =BH56 -> 361 | BT48: =SUM(BP48:BS48) -> 865 | BU48: =BW56 -> 865 | BV48: =IFERROR(ABS(BT48-BU48)/BU48,0) -> 0
BO49: 3 | BP49: =BC57 -> 212 | BQ49: =BD57 -> 415 | BR49: =BE57 -> 0 | BS49: =BB57 -> 389 | BT49: =SUM(BP49:BS49) -> 1016 | BU49: =BC42 -> 1016 | BV49: 0
BO50: 4 | BP50: =BD63 -> 191 | BQ50: =BD62 -> 407 | BR50: =BD61 -> 212 | BS50: =BD60 -> 0 | BT50: =SUM(BP50:BS50) -> 810 | BU50: =AO62 -> 810 | BV50: 0
BO51: est | BP51: =SUM(BP47:BP50) -> 805 | BQ51: =SUM(BQ47:BQ50) -> 861 | BR51: =SUM(BR47:BR50) -> 794 | BS51: =SUM(BS47:BS50) -> 1219
BA52: RNSE | BB52: =RNSE(BB54,BB57) -> 0 | BC52: =RNSE(BC54,BC57) -> 0 | BD52: 0 | BE52: - | BO52: tgt | BP52: =BC74 -> 805 | BQ52: =BU62 -> 861 | BR52: =BI44 -> 794 | BS52: =AQ56 -> 1219
BA53: % | BB53: =BB54/BD42 -> 0.3828740157 | BC53: =BC54/BD42 -> 0.2086614173 | BD53: =BD54/BD42 -> 0.4084645669 | BE53: =BE54/BD42 -> 0 | BO53: err | BP53: =IFERROR(ABS(BP51-BP52)/BP52,0) -> 0 | BQ53: =IFERROR(ABS(BQ51-BQ52)/BQ52,0) -> 0 | BR53: 0 | BS53: 0 | BV53: =SUM(BP53:BS53,BV47:BV50) -> 0
BA54: bal | BB54: =BS68 -> 389 | BC54: =BP68 -> 212 | BD54: =BQ68 -> 415 | BE54: =BR68 -> 0 | BH54: raw | BI54: % | BK54: bal | BL54: % | BM54: RNSE
BB55: 8 | BC55: $ | BD55: 9 | BE55: M | BG55: =CHOOSE(1,"<","TURN",6,BF59,BH55,BK55) -> < | BH55: =RANDBETWEEN(10,500) -> 102 | BI55: =BH55/BW58 -> 0.1179190751 | BJ55: < | BK55: =BR67 -> 102 | BL55: =BK55/BW57 -> 0.1179190751 | BM55: =RNSE(BK55,BH55) -> 0
AO56: imbal | AP56: target | AQ56: =IF(AN57<>"",AVERAGE(AQ57,AN57),AQ57) -> 1219 | BA56: % | BB56: =BB57/BE42 -> 0.3828740157 | BC56: =BC57/BE42 -> 0.2086614173 | BD56: =BD57/BE42 -> 0.4084645669 | BE56: =BE57/BE42 -> 0 | BG56: =CHOOSE(1,"!","TURN",5,BF59,BH56,BK56) -> ! | BH56: 361 | BI56: =BH56/BW58 -> 0.4173410405 | BJ56: ! | BK56: =BS67 -> 361 | BL56: =BK56/BW57 -> 0.4173410405 | BM56: =RNSE(BK56,BH56) -> 0 | BV56: target | BW56: =IF(BZ57<>"",AVERAGE(BW57,BZ57),BW57) -> 865
AO57: =IF(AN57<>"",AN57-AQ57,0) -> 0 | AP57: ! | AQ57: =SUM(BA60,BH64,BK56,BB54) -> 1219 | BA57: raw | BB57: =RANDBETWEEN(10,500) -> 389 | BC57: 212 | BD57: 415 | BE57: 0 | BG57: =CHOOSE(1,">","TURN",4,BF59,BH57,BK57) -> > | BH57: 402 | BI57: =BH57/BW58 -> 0.4647398844 | BJ57: > | BK57: =BP67 -> 402 | BL57: =BK57/BW57 -> 0.4647398844 | BM57: 0 | BV57: ! | BW57: =SUM(BK55:BK58) -> 865
AO58: =IF(AN58<>"",AN58-AQ58,0) -> 0 | AP58: ! | AQ58: =SUM(BD60,BH61,BH56,BB57) -> 1219 | BB58: =CHOOSE(1,8,"TURN",9,BF59,BB57,BB54) -> 8 | BC58: =CHOOSE(1,"$","TURN",8,BF59,BC57,BC54) -> $ | BD58: =CHOOSE(1,"9","TURN",7,BF59,BD57,BD54) -> 9 | BE58: =CHOOSE(1,"M","TURN",15,BF59,BE57,BE54) -> M | BG58: =CHOOSE(1,"N","TURN",14,BF59,BH58,BK58) -> N | BH58: 0 | BI58: =BH58/BW58 -> 0 | BJ58: N | BK58: =BQ67 -> 0 | BL58: =BK58/BW57 -> 0 | BM58: - | BV58: ! | BW58: =SUM(BH55:BH58) -> 865
BF59: 1
AO60: =SUM(BD60:BD63) -> 810 | AP60: " | AW60: Main Ave | AY60: =RNSE(BA60,BD60) -> - | AZ60: =BA60/AO61 -> 0 | BA60: =BS69 -> 0 | BB60: O | BC60: =BD60/AO60 -> 0 | BD60: 0 | BE60: =CHOOSE(1,"O","TURN",16,BF59,BD60,BA60) -> O | BG60: =CHOOSE(1,"L","TURN",13,BF59,BG61,BG64) -> L | BH60: =CHOOSE(1,":","TURN",1,BF59,BH61,BH64) -> : | BI60: =CHOOSE(1,"#","TURN",2,BF59,BI61,BI64) -> # | BJ60: =CHOOSE(1,";","TURN",3,BF59,BJ61,BJ64) -> ; | BU60: =SUM(BH58,BD57,BD62,BJ61) -> 861 | BV60: " | BW60: =IF(BX60<>"",BX60-BU60,0) -> 0
AO61: =SUM(BA60:BA63) -> 810 | AP61: " | AY61: 0 | AZ61: =BA61/AO61 -> 0.2617283951 | BA61: =BR69 -> 212 | BB61: = | BC61: =BD61/AO60 -> 0.2617283951 | BD61: =RANDBETWEEN(10,500) -> 212 | BE61: =CHOOSE(1,"=","TURN",10,BF59,BD61,BA61) -> = | BG61: 0 | BH61: =RANDBETWEEN(10,500) -> 469 | BI61: 480 | BJ61: 39 | BK61: raw | BU61: =SUM(BK58,BD54,BA62,BJ64) -> 861 | BV61: " | BW61: =IF(BX61<>"",BX61-BU61,0) -> 0
AO62: =IF(AL61<>"",AVERAGE(AO61,AL61),AO61) -> 810 | AP62: target | AY62: 0 | AZ62: =BA62/AO61 -> 0.5024691358 | BA62: =BQ69 -> 407 | BB62: " | BC62: =BD62/AO60 -> 0.5024691358 | BD62: 407 | BE62: =CHOOSE(1,"""","TURN",11,BF59,BD62,BA62) -> " | BG62: =BG61/BG76 -> 0 | BH62: =BH61/BG76 -> 0.4746963563 | BI62: =BI61/BG76 -> 0.4858299595 | BJ62: =BJ61/BG76 -> 0.03947368421 | BK62: % | BU62: =IF(BX61<>"",AVERAGE(BU61,BX61),BU61) -> 861 | BV62: target | BW62: imbal
AY63: 0 | AZ63: =BA63/AO61 -> 0.2358024691 | BA63: =BP69 -> 191 | BB63: ? | BC63: =BD63/AO60 -> 0.2358024691 | BD63: 191 | BE63: =CHOOSE(1,"?","TURN",12,BF59,BD63,BA63) -> ? | BG63: L | BH63: : | BI63: # | BJ63: ;
AY64: RNSE | AZ64: % | BA64: bal | BC64: % | BD64: raw | BG64: =BP66 -> 0 | BH64: =BS66 -> 469 | BI64: =BR66 -> 480 | BJ64: =BQ66 -> 39 | BK64: bal | BO64: Local OD Estimated
BG65: =BG64/BH76 -> 0 | BH65: =BH64/BH76 -> 0.4746963563 | BI65: =BI64/BH76 -> 0.4858299595 | BJ65: =BJ64/BH76 -> 0.03947368421 | BK65: % | BO65: ="local_od_est_"&BF59 -> local_od_est_1 | BP65: 1 | BQ65: 2 | BR65: 3 | BS65: 4 | BT65: est | BU65: tgt | BV65: err
BG66: =RNSE(BG64,BG61) -> - | BH66: 0 | BI66: 0 | BJ66: 0 | BK66: RNSE | BO66: 1 | BP66: =BP47 -> 0 | BQ66: 39 | BR66: 480 | BS66: 469 | BT66: =SUM(BP66:BS66) -> 988 | BU66: =BU47 -> 988 | BV66: =IFERROR(ABS(BT66-BU66)/BU66,0) -> 0
BO67: 2 | BP67: 402 | BQ67: 0 | BR67: 102 | BS67: 361 | BT67: =SUM(BP67:BS67) -> 865 | BU67: 865 | BV67: =IFERROR(ABS(BT67-BU67)/BU67,0) -> 0
BO68: 3 | BP68: 212 | BQ68: 415 | BR68: 0 | BS68: 389 | BT68: 1016 | BU68: 1016 | BV68: 0
BO69: 4 | BP69: 191 | BQ69: 407 | BR69: 212 | BS69: 0 | BT69: 810 | BU69: 810 | BV69: 0
BO70: est | BP70: =SUM(BP66:BP69) -> 805 | BQ70: =SUM(BQ66:BQ69) -> 861 | BR70: =SUM(BR66:BR69) -> 794 | BS70: =SUM(BS66:BS69) -> 1219 | BZ70: 10. Define ramp volumes from freeway balancing (if applicable).
BO71: tgt | BP71: =BP52 -> 805 | BQ71: 861 | BR71: 794 | BS71: 1219 | CA71: LINK_ID | CB71: 200
BO72: err | BP72: =IFERROR(ABS(BP70-BP71)/BP71,0) -> 0 | BQ72: =IFERROR(ABS(BQ70-BQ71)/BQ71,0) -> 0 | BR72: =IFERROR(ABS(BR70-BR71)/BR71,0) -> 0 | BS72: =IFERROR(ABS(BS70-BS71)/BS71,0) -> 0 | BV72: =SUM(BP72:BS72,BV66:BV69) -> 0 | CB72: =CHOOSE(1,"$","LINK",CA71,CB71) -> $ | CC72: <---- Click inside the ramp arrow cell to see the CHOOSE formula
BC74: =IF(BD77<>"",AVERAGE(BD74,BD77),BD74) -> 805 | BD74: =SUM(BG64,BK57,BC54,BA63) -> 805 | BE74: =SUM(BG61,BH57,BC57,BD63) -> 805
BC75: target | BD75: $ | BE75: $ | BG75: # | BH75: # | BI75: target
BC76: imbal | BD76: =IF(BD77<>"",BD77-BD74,0) -> 0 | BE76: =IF(BE77<>"",BE77-BE74,0) -> 0 | BG76: =SUM(BG61:BJ61) -> 988 | BH76: =SUM(BG64:BJ64) -> 988 | BI76: =IF(BH79<>"",AVERAGE(BH76,BH79),BH76) -> 988

Sheet How-To (with Freeway Link)
AD52: =CHOOSE(1,AK77&":","IX_NAME",AE52) -> 1: | AE52: Default St & SB I-999 Ramps | BF52: =CHOOSE(1,BF77&":","IX_NAME",BG52) -> 2: | BG52: Default St & NB I-999 Ramps
AE53: Raw Count Date: | BG53: Raw Count Date:
Z54: Local OD Raw | BJ54: Local OD Raw
Z55: ="local_od_raw_"&AK77 -> local_od_raw_1 | AA55: 1 | AB55: 2 | AC55: 3 | AD55: 4 | AE55: est | AF55: tgt | AG55: err | BJ55: ="local_od_raw_"&BF77 -> local_od_raw_2 | BK55: 1 | BL55: 2 | BM55: 3 | BN55: 4 | BO55: est | BP55: tgt | BQ55: err
Z56: 1 | AA56: 0 | AB56: 0 | AC56: 0 | AD56: 0 | AE56: =SUM(AA56:AD56) -> 0 | AF56: 0 | AG56: =IFERROR(ABS(AE56-AF56)/AF56,0) -> 0 | BJ56: 1 | BK56: 0 | BL56: =BI79 -> 340 | BM56: =BH79 -> 0 | BN56: =BG79 -> 302 | BO56: =SUM(BK56:BN56) -> 642 | BP56: =BI88 -> 280 | BQ56: =IFERROR(ABS(BO56-BP56)/BP56,0) -> 1.292857143
Z57: 2 | AA57: =AM75 -> 109 | AB57: =AM76 -> 0 | AC57: 0 | AD57: =AM74 -> 68 | AE57: =SUM(AA57:AD57) -> 177 | AF57: =AU74 -> 357.5 | AG57: =IFERROR(ABS(AE57-AF57)/AF57,0) -> 0.5048951049 | BJ57: 2 | BK57: 0 | BL57: =BH76 -> 0 | BM57: =BH74 -> 243 | BN57: =BH75 -> 236 | BO57: =SUM(BK57:BN57) -> 479 | BP57: =BQ74 -> 479 | BQ57: =IFERROR(ABS(BO57-BP57)/BP57,0) -> 0
Z58: 3 | AA58: =AI75 -> 0 | AB58: =AJ75 -> 456 | AC58: 0 | AD58: =AH75 -> 273 | AE58: =SUM(AA58:AD58) -> 729 | AF58: =AH66 -> 200 | AG58: 2.645 | BJ58: 3 | BK58: 0 | BL58: 0 | BM58: 0 | BN58: 0 | BO58: =SUM(BK58:BN58) -> 0 | BP58: 0 | BQ58: 0
Z59: 4 | AA59: =AI80 -> 220 | AB59: =AI79 -> 379 | AC59: 0 | AD59: =AI78 -> 0 | AE59: =SUM(AA59:AD59) -> 599 | AF59: =Z80 -> 599 | AG59: 0 | BJ59: 4 | BK59: 0 | BL59: =BD80 -> 360 | BM59: =BD79 -> 470 | BN59: =BD78 -> 0 | BO59: =SUM(BK59:BN59) -> 830 | BP59: =AV80 -> 832.5 | BQ59: 0.003003003003
Z60: est | AA60: =SUM(AA56:AA59) -> 329 | AB60: =SUM(AB56:AB59) -> 835 | AC60: =SUM(AC56:AC59) -> 0 | AD60: =SUM(AD56:AD59) -> 341 | BJ60: est | BK60: =SUM(BK56:BK59) -> 0 | BL60: =SUM(BL56:BL59) -> 700 | BM60: =SUM(BM56:BM59) -> 713 | BN60: =SUM(BN56:BN59) -> 538
Z61: tgt | AA61: =AH88 -> 200 | AB61: =AS80 -> 832.5 | AC61: 0 | AD61: =AB74 -> 341 | BJ61: tgt | BK61: 0 | BL61: =BO80 -> 700 | BM61: =BH67 -> 555 | BN61: =AX74 -> 357.5
Z62: err | AA62: =IFERROR(ABS(AA60-AA61)/AA61,0) -> 0.645 | AB62: =IFERROR(ABS(AB60-AB61)/AB61,0) -> 0.003003003003 | AC62: 0 | AD62: 0 | AG62: =SUM(AA62:AD62,AG56:AG59) -> 3.797898108 | BJ62: err | BK62: =IFERROR(ABS(BK60-BK61)/BK61,0) -> 0 | BL62: =IFERROR(ABS(BL60-BL61)/BL61,0) -> 0 | BM62: 0.2846846847 | BN62: 0.5048951049 | BQ62: =SUM(BK62:BN62,BQ56:BQ59) -> 2.085439935
AH63: LINK_ID | AI63: 200 | BG63: =CHOOSE(1,"#","LINK",BH63,BG64) -> # | BH63: LINK_ID
R64: EXAMPLE | AI64: =CHOOSE(1,"$","LINK",AH63,AI63) -> $ | BG64: 555
R65: Ramp Arrow Cell | AH65: imbal | AI65: =IF(AI66<>"",AI66-AI63,0) -> 529 | AJ65: =IF(AI63<>"",AJ66-AI63,0) -> 529 | BF65: =IF(BG64<>"",BG64-BF67,0) -> -158 | BG65: =IF(BG64<>"",BG64-BG67,0) -> -158 | BH65: imbal
AH66: =IF(AI63<>"",AI63,AI66) -> 200 | AI66: =SUM(AH72:AJ72) -> 729 | AJ66: =SUM(AH75:AJ75) -> 729 | BF66: # | BG66: # | BH66: target
AH67: target | AI67: $ | AJ67: $ | BF67: =SUM(BD79,BH79,BH74) -> 713 | BG67: =SUM(BA79,BH82,BK74) -> 713 | BH67: =IF(BG64<>"",BG64,BG67) -> 555
AG70: RNSE | AH70: =RNSE(AH72,AH75) -> 0 | AI70: =RNSE(AI72,AI75) -> - | AJ70: 0
AG71: % | AH71: =AH72/AI66 -> 0.3744855967 | AI71: =AI72/AI66 -> 0 | AJ71: =AJ72/AI66 -> 0.6255144033
AG72: bal | AH72: =AD97 -> 273 | AI72: =AA97 -> 0 | AJ72: =AB97 -> 456
AH73: 8 | AI73: $ | AJ73: 9 | AM73: raw | AN73: % | AP73: bal | AQ73: % | AR73: RNSE | BH73: raw | BI73: % | BK73: bal | BL73: % | BM73: RNSE
Z74: imbal | AA74: target | AB74: =IF(Y75<>"",AVERAGE(AB75,Y75),AB75) -> 341 | AG74: % | AH74: =AH75/AJ66 -> 0.3744855967 | AI74: =AI75/AJ66 -> 0 | AJ74: =AJ75/AJ66 -> 0.6255144033 | AL74: =CHOOSE(1,"!","TURN",5,#REF!,AM74,AP74) -> ! | AM74: =RANDBETWEEN(10,500) -> 68 | AN74: =AM74/AU76 -> 0.384180791 | AO74: ! | AP74: =AD96 -> 68 | AQ74: =AP74/AU75 -> 0.384180791 | AR74: =RNSE(AP74,AM74) -> 0 | AT74: target | AU74: =IF(AX75<>"",AVERAGE(AU75,AX75),AU75) -> 357.5 | AV74: imbal | AW74: target | AX74: =IF(AU75<>"",AVERAGE(AX75,AU75),AX75) -> 357.5 | BG74: =CHOOSE(1,"<","TURN",6,BF77,BH74,BK74) -> < | BH74: =RANDBETWEEN(10,500) -> 243 | BI74: =BH74/BQ76 -> 0.5073068894 | BJ74: < | BK74: =BM96 -> 243 | BL74: =BK74/BQ75 -> 0.5073068894 | BM74: =RNSE(BK74,BH74) -> 0 | BP74: target | BQ74: =IF(BT75<>"",AVERAGE(BQ75,BT75),BQ75) -> 479
Z75: =IF(Y75<>"",Y75-AB75,0) -> 0 | AA75: ! | AB75: =SUM(AH72,AF78,AP74) -> 341 | AG75: raw | AH75: =RANDBETWEEN(10,500) -> 273 | AI75: 0 | AJ75: 456 | AL75: =CHOOSE(1,">","TURN",4,#REF!,AM75,AP75) -> > | AM75: 109 | AN75: =AM75/AU76 -> 0.615819209 | AO75: > | AP75: =AA96 -> 109 | AQ75: =AP75/AU75 -> 0.615819209 | AR75: 0 | AT75: ! | AU75: =SUM(AP74:AP76) -> 177 | AV75: =IF(AU75<>"",AU75-AX75,0) -> -361 | AW75: ! | AX75: =SUM(BG82,BK75,BA78) -> 538 | BG75: =CHOOSE(1,"!","TURN",5,BF77,BH75,BK75) -> ! | BH75: 236 | BI75: =BH75/BQ76 -> 0.4926931106 | BJ75: ! | BK75: =BN96 -> 236 | BL75: =BK75/BQ75 -> 0.4926931106 | BM75: =RNSE(BK75,BH75) -> 0 | BP75: ! | BQ75: =SUM(BK74:BK76) -> 479
Z76: =IF(Y76<>"",Y76-AB76,0) -> 0 | AA76: ! | AB76: =SUM(AH75,AI78,AM74) -> 341 | AF76: Default St | AH76: =CHOOSE(1,8,"TURN",9,#REF!,AH75,AH72) -> 8 | AI76: =CHOOSE(1,"$","TURN",8,#REF!,AI75,AI72) -> $ | AJ76: =CHOOSE(1,"9","TURN",7,#REF!,AJ75,AJ72) -> 9 | AL76: =CHOOSE(1,"N","TURN",14,#REF!,AM76,AP76) -> N | AM76: 0 | AN76: =AM76/AU76 -> 0 | AO76: N | AP76: =AB96 -> 0 | AQ76: =AP76/AU75 -> 0 | AR76: - | AT76: ! | AU76: =SUM(AM74:AM76) -> 177 | AV76: =IF(AU76<>"",AU76-AX76,0) -> -361 | AW76: ! | AX76: =SUM(BG79,BH75,BD78) -> 538 | BD76: Default St | BG76: =CHOOSE(1,"N","TURN",14,BF77,BH76,BK76) -> N | BH76: 0 | BI76: =BH76/BQ76 -> 0 | BJ76: N | BK76: =BL96 -> 0 | BL76: =BK76/BQ75 -> 0 | BM76: =RNSE(BK76,BH76) -> - | BP76: ! | BQ76: =SUM(BH74:BH76) -> 479
AK77: 1 | BF77: 2
Z78: =SUM(AI78:AI80) -> 599 | AA78: " | AD78: =RNSE(AF78,AI78) -> - | AE78: =AF78/Z79 -> 0 | AF78: =AD98 -> 0 | AG78: O | AH78: =AI78/Z78 -> 0 | AI78: 0 | AJ78: =CHOOSE(1,"O","TURN",16,#REF!,AI78,AF78) -> O | AS78: =SUM(AM76,AJ75,AI79) -> 835 | AT78: " | AU78: =IF(AV78<>"",AV78-AS78,0) -> -5 | AV78: =SUM(BD78:BD80) -> 830 | AW78: " | AY78: =RNSE(BA78,BD78) -> - | AZ78: =BA78/AV79 -> 0 | BA78: =BN98 -> 0 | BB78: O | BC78: =BD78/AV78 -> 0 | BD78: 0 | BE78: =CHOOSE(1,"O","TURN",16,BF77,BD78,BA78) -> O | BG78: =CHOOSE(1,":","TURN",1,BF77,BG79,BG82) -> : | BH78: =CHOOSE(1,"#","TURN",2,BF77,BH79,BH82) -> # | BI78: =CHOOSE(1,";","TURN",3,BF77,BI79,BI82) -> ; | BO78: =SUM(BH76,BD80,BI79) -> 700 | BP78: " | BQ78: =IF(BR78<>"",BR78-BO78,0) -> 0
Z79: =SUM(AF78:AF80) -> 599 | AA79: " | AD79: =RNSE(AF79,AI79) -> 0 | AE79: =AF79/Z79 -> 0.632721202 | AF79: =AB98 -> 379 | AG79: " | AH79: =AI79/Z78 -> 0.632721202 | AI79: =RANDBETWEEN(10,500) -> 379 | AJ79: =CHOOSE(1,"""","TURN",11,#REF!,AI79,AF79) -> " | AS79: =SUM(AP76,AJ72,AF79) -> 835 | AT79: " | AU79: =IF(AV79<>"",AV79-AS79,0) -> -5 | AV79: =SUM(BA78:BA80) -> 830 | AW79: " | AY79: 0 | AZ79: =BA79/AV79 -> 0.5662650602 | BA79: =BM98 -> 470 | BB79: = | BC79: =BD79/AV78 -> 0.5662650602 | BD79: =RANDBETWEEN(10,500) -> 470 | BE79: =CHOOSE(1,"=","TURN",10,BF77,BD79,BA79) -> = | BG79: =RANDBETWEEN(10,500) -> 302 | BH79: 0 | BI79: 340 | BJ79: raw | BO79: =SUM(BK76,BA80,BI82) -> 700 | BP79: " | BQ79: =IF(BR79<>"",BR79-BO79,0) -> 0
Z80: =IF(W79<>"",AVERAGE(Z79,W79),Z79) -> 599 | AA80: target | AD80: =RNSE(AF80,AI80) -> 0 | AE80: =AF80/Z79 -> 0.367278798 | AF80: =AA98 -> 220 | AG80: ? | AH80: =AI80/Z78 -> 0.367278798 | AI80: =RANDBETWEEN(10,500) -> 220 | AJ80: =CHOOSE(1,"?","TURN",12,#REF!,AI80,AF80) -> ? | AS80: =IF(AV79<>"",AVERAGE(AS79,AV79),AS79) -> 832.5 | AT80: target | AU80: imbal | AV80: =IF(AS79<>"",AVERAGE(AV79,AS79),AV79) -> 832.5 | AW80: target | AY80: 0 | AZ80: =BA80/AV79 -> 0.4337349398 | BA80: =BL98 -> 360 | BB80: " | BC80: =BD80/AV78 -> 0.4337349398 | BD80: 360 | BE80: =CHOOSE(1,"""","TURN",11,BF77,BD80,BA80) -> " | BG80: =BG79/BG88 -> 0.4704049844 | BH80: =BH79/BG88 -> 0 | BI80: =BI79/BG88 -> 0.5295950156 | BJ80: % | BO80: =IF(BR79<>"",AVERAGE(BO79,BR79),BO79) -> 700 | BP80: target | BQ80: imbal
AD81: RNSE | AE81: % | AF81: bal | AH81: % | AI81: raw | AY81: RNSE | AZ81: % | BA81: bal | BC81: % | BD81: raw | BG81: : | BH81: # | BI81: ;
BG82: =BN95 -> 302 | BH82: =BM95 -> 0 | BI82: =BL95 -> 340 | BJ82: bal
BG83: =BG82/BH88 -> 0.4704049844 | BH83: =BH82/BH88 -> 0 | BI83: =BI82/BH88 -> 0.5295950156 | BJ83: %
BG84: =RNSE(BG82,BG79) -> 0 | BH84: =RNSE(BH82,BH79) -> - | BI84: =RNSE(BI82,BI79) -> 0 | BJ84: RNSE
BG87: # | BH87: # | BI87: target
AH88: =IF(AI91<>"",AI91,AI88) -> 200 | AI88: =SUM(AF80,AI72,AP75) -> 329 | AJ88: =SUM(AI80,AI75,AM75) -> 329 | BG88: =SUM(BG79:BI79) -> 642 | BH88: =SUM(BG82:BI82) -> 642 | BI88: =IF(BH91<>"",BH91,BH88) -> 280
AH89: target | AI89: $ | AJ89: $ | BG89: =IF(BH91<>"",BG88-BH91,0) -> 362 | BH89: =IF(BH91<>"",BH88-BH91,0) -> 362 | BI89: imbal
AH90: imbal | AI90: =IF(AI91<>"",AI91-AI88,0) -> -129 | AJ90: =IF(AI91<>"",AI91-AJ88,0) -> -129 | BH90: =CHOOSE(1,"#","LINK",BI91,BH91) -> #
AI91: 200 | BH91: 280 | BI91: LINK_ID
AH92: LINK_ID | AI92: =CHOOSE(1,"$","LINK",AH92,AI91) -> $
Z93: Local OD Estimated | BJ93: Local OD Estimated
Z94: ="local_od_est_"&AK77 -> local_od_est_1 | AA94: 1 | AB94: 2 | AC94: 3 | AD94: 4 | AE94: est | AF94: tgt | AG94: err | BJ94: ="local_od_est_"&BF77 -> local_od_est_2 | BK94: 1 | BL94: 2 | BM94: 3 | BN94: 4 | BO94: est | BP94: tgt | BQ94: err
Z95: 1 | AA95: =AA56 -> 0 | AB95: 0 | AC95: 0 | AD95: 0 | AE95: =SUM(AA95:AD95) -> 0 | AF95: =AF56 -> 0 | AG95: =IFERROR(ABS(AE95-AF95)/AF95,0) -> 0 | BJ95: 1 | BK95: =BK56 -> 0 | BL95: 340 | BM95: 0 | BN95: 302 | BO95: =SUM(BK95:BN95) -> 642 | BP95: =BP56 -> 280 | BQ95: =IFERROR(ABS(BO95-BP95)/BP95,0) -> 1.292857143
Z96: 2 | AA96: 109 | AB96: 0 | AC96: 0 | AD96: 68 | AE96: =SUM(AA96:AD96) -> 177 | AF96: =AF57 -> 357.5 | AG96: =IFERROR(ABS(AE96-AF96)/AF96,0) -> 0.5048951049 | BJ96: 2 | BK96: 0 | BL96: 0 | BM96: 243 | BN96: 236 | BO96: =SUM(BK96:BN96) -> 479 | BP96: =BP57 -> 479 | BQ96: =IFERROR(ABS(BO96-BP96)/BP96,0) -> 0
Z97: 3 | AA97: 0 | AB97: 456 | AC97: 0 | AD97: 273 | AE97: 729 | AF97: =AF58 -> 200 | AG97: 2.645 | BJ97: 3 | BK97: 0 | BL97: 0 | BM97: 0 | BN97: 0 | BO97: 0 | BP97: =BP58 -> 0 | BQ97: 0
Z98: 4 | AA98: 220 | AB98: 379 | AC98: 0 | AD98: 0 | AE98: 599 | AF98: =AF59 -> 599 | AG98: 0 | BJ98: 4 | BK98: 0 | BL98: 360 | BM98: 470 | BN98: 0 | BO98: 830 | BP98: =BP59 -> 832.5 | BQ98: 0.003003003003
Z99: est | AA99: =SUM(AA95:AA98) -> 329 | AB99: =SUM(AB95:AB98) -> 835 | AC99: 0 | AD99: 341 | BJ99: est | BK99: =SUM(BK95:BK98) -> 0 | BL99: =SUM(BL95:BL98) -> 700 | BM99: 713 | BN99: 538
Z100: tgt | AA100: =AA61 -> 200 | AB100: =AB61 -> 832.5 | AC100: =AC61 -> 0 | AD100: =AD61 -> 341 | BJ100: tgt | BK100: =BK61 -> 0 | BL100: =BL61 -> 700 | BM100: =BM61 -> 555 | BN100: =BN61 -> 357.5
Z101: err | AA101: =IFERROR(ABS(AA99-AA100)/AA100,0) -> 0.645 | AB101: =IFERROR(ABS(AB99-AB100)/AB100,0) -> 0.003003003003 | AC101: 0 | AD101: 0 | AG101: =SUM(AA101:AD101,AG95:AG98) -> 3.797898108 | BJ101: err | BK101: =IFERROR(ABS(BK99-BK100)/BK100,0) -> 0 | BL101: =IFERROR(ABS(BL99-BL100)/BL100,0) -> 0 | BM101: 0.2846846847 | BN101: 0.5048951049 | BQ101: =SUM(BK101:BN101,BQ95:BQ98) -> 2.085439935
